[Event "FIDE Womens Grand Swiss 2021"]
[Site "Riga"]
[Date "2021.10.31"]
[Round "5.22"]
[White "Milliet, Sophie"]
[Black "Cori T., Deysi"]
[Result "0-1"]
[ECO "B07"]
[WhiteElo "2410"]
[BlackElo "2382"]
[Annotator "NA"]
[PlyCount "102"]
[EventDate "2021.10.27"]
[EventType "swiss"]
[EventCountry "LAT"]
[Tiebreak "Cut1 Buchholz+Sonneborn-Berger (Swiss)"]
[SourceTitle "playchess.com"]
[Source "ChessBase"]
[SourceQuality "1"]
[TimeControl "40/6000+30:20/3000+30:900+30"]

1. e4 {[%emt 0:10:04]} d6 {[%emt 0:10:23]} 2. d4 {[%emt 0:00:07]} Nf6 {[%emt 0:
00:09]} 3. Nc3 {[%emt 0:00:05]} g6 {[%emt 0:00:21]} 4. Be2 {[%emt 0:01:10]} Bg7
{[%emt 0:17:41]} 5. h4 {[%emt 0:00:07]} h5 {[%emt 0:06:13]} 6. Nh3 {[%emt 0:03:
30]} c6 {[%emt 0:07:04]} 7. Ng5 {[%emt 0:00:44]} O-O {[%emt 0:09:29]} 8. Be3 {
[%emt 0:08:20]} b5 {[%emt 0:01:45]} 9. a3 {[%emt 0:11:37]} Qc7 {[%emt 0:06:42]}
10. Qd2 {[%emt 0:04:00]} a5 {[%emt 0:01:01]} 11. O-O {[%emt 0:06:50]} Ng4 {
[%emt 0:03:44]} 12. d5 {[%emt 0:05:25]} Bb7 {[%emt 0:08:10]} 13. Bd4 {[%emt 0:
13:49]} Nd7 {[%emt 0:07:23]} 14. Bxg7 {[%emt 0:02:24]} Kxg7 {[%emt 0:02:43]}
15. dxc6 {[%emt 0:06:49]} Bxc6 {[%emt 0:00:05]} 16. Nxb5 {[%emt 0:03:57]} Bxb5
{[%emt 0:03:42]} 17. Bxb5 {[%emt 0:00:03]} Ndf6 {[%emt 0:00:04]} 18. Be2 {
[%emt 0:02:42]} Rfc8 {[%emt 0:00:02]} 19. c3 {[%emt 0:09:08]} a4 {[%emt 0:00:
38]} 20. Bxg4 {[%emt 0:05:49]} hxg4 {[%emt 0:01:12]} 21. Rfe1 {[%emt 0:00:16]}
Ra5 {[%emt 0:00:43]} 22. Re2 {[%emt 0:02:01]} Rb8 {[%emt 0:13:29]} 23. Rc1 {
[%emt 0:00:10]} Rc5 {[%emt 0:01:59]} 24. Qe3 {[%emt 0:01:59]} Rb3 {[%emt 0:04:
49]} 25. Rcc2 {[%emt 0:06:03]} Rc4 {[%emt 0:01:44]} 26. Rcd2 {[%emt 0:00:17]}
Rc5 {[%emt 0:01:16]} 27. Qd4 {[%emt 0:00:30]} Rc4 {[%emt 0:00:15]} 28. Qe3 {
[%emt 0:00:03]} Rc5 {[%emt 0:00:40]} 29. Qd3 {[%emt 0:03:13]} Qb7 {[%emt 0:00:
46]} 30. Qd4 {[%emt 0:00:22]} Qb5 {[%emt 0:00:28]} 31. Qe3 {[%emt 0:01:31]} Qb8
{[%emt 0:00:45]} 32. f4 {[%emt 0:02:23]} gxf3 {[%emt 0:00:31]} 33. gxf3 {
[%emt 0:00:00]} Rcb5 {[%emt 0:00:08]} 34. Qf2 {[%emt 0:00:05]} Qh8 {[%emt 0:00:
47]} 35. Qh2 {[%emt 0:00:43]} Nd7 {[%emt 0:00:30]} 36. f4 {[%emt 0:00:32]} Qh5
{[%emt 0:00:26]} 37. Qh3 {[%emt 0:00:39]} Nb6 {[%emt 0:00:18]} 38. Rf2 {
[%emt 0:01:30]} Nc4 {[%emt 0:00:11]} 39. Rd4 {[%emt 0:00:22]} Rxb2 {[%emt 0:00:
29]} 40. Rxc4 {[%emt 0:00:39]} Rxf2 {[%emt 0:00:06]} 41. Kxf2 {[%emt 0:31:26]}
Rb2+ {[%emt 0:23:19]} 42. Kg3 {[%emt 0:00:05]} Qe2 {[%emt 0:00:08]} 43. Nf3 {
[%emt 0:03:09]} Qxc4 {[%emt 0:05:31]} 44. h5 {[%emt 0:00:02]} Qc5 {[%emt 0:01:
28]} 45. h6+ {[%emt 0:02:24]} Kh8 {[%emt 0:00:06]} 46. Qf1 {[%emt 0:00:12]}
Qxc3 {[%emt 0:01:17]} 47. Qd1 {[%emt 0:03:45]} Rb3 {[%emt 0:00:38]} 48. Kg4 {
[%emt 0:00:14]} Qxf3+ {[%emt 0:00:07]} 49. Qxf3 {[%emt 0:00:04]} Rxf3 {[%emt 0:
00:14]} 50. Kxf3 {[%emt 0:00:03]} Kh7 {[%emt 0:00:05]} 51. Ke3 {[%emt 0:00:03]}
e5 {[%emt 0:00:11]} 0-1

[Event "FIDE Womens Grand Swiss 2021"]
[Site "Riga"]
[Date "2021.10.31"]
[Round "5.23"]
[White "Kamalidenova, Meruert"]
[Black "Cyfka, Karina"]
[Result "1-0"]
[ECO "C60"]
[WhiteElo "2339"]
[BlackElo "2409"]
[Annotator "ChessBase"]
[PlyCount "205"]
[EventDate "2021.10.27"]
[EventType "swiss"]
[EventCountry "LAT"]
[Tiebreak "Cut1 Buchholz+Sonneborn-Berger (Swiss)"]
[SourceTitle "playchess.com"]
[Source "ChessBase"]
[SourceQuality "1"]
[TimeControl "40/6000+30:20/3000+30:900+30"]

1. e4 {[%emt 0:10:06]} e5 {[%emt 0:10:07]} 2. Nf3 {[%emt 0:00:06]} Nc6 {
[%emt 0:00:04]} 3. Bb5 {[%emt 0:00:08]} a6 {[%emt 0:00:05]} 4. Ba4 {[%emt 0:00:
07]} d6 {[%emt 0:00:12]} 5. c3 {[%emt 0:02:07]} Bd7 {[%emt 0:00:47]} 6. O-O {
[%emt 0:00:38]} g6 {[%emt 0:00:15]} 7. d4 {[%emt 0:00:44]} Bg7 {[%emt 0:00:20]}
8. h3 {[%emt 0:01:35]} Nf6 {[%emt 0:05:03]} 9. Bc2 {[%emt 0:02:43]} O-O {
[%emt 0:01:53]} 10. Be3 {[%emt 0:00:48]} h6 {[%emt 0:05:48]} 11. Nbd2 {[%emt 0:
02:04]} Nh5 {[%emt 0:03:09]} 12. Re1 {[%emt 0:02:30]} Kh8 {[%emt 0:13:47]} 13.
Nf1 {[%emt 0:03:15]} Ne7 {[%emt 0:06:30]} 14. Qd2 {[%emt 0:04:39]} Ng8 {
[%emt 0:07:53]} 15. dxe5 {[%emt 0:11:52]} dxe5 {[%emt 0:00:23]} 16. g4 {
[%emt 0:01:31]} Nf4 {[%emt 0:07:00]} 17. Bxf4 {[%emt 0:02:46]} exf4 {[%emt 0:
00:05]} 18. Qxf4 {[%emt 0:04:02]} Be6 {[%emt 0:01:56]} 19. Ne3 {[%emt 0:04:17]}
c6 {[%emt 0:01:35]} 20. e5 {[%emt 0:05:24]} Ne7 {[%emt 0:02:14]} 21. c4 {
[%emt 0:04:52]} Qb6 {[%emt 0:05:41]} 22. Rab1 {[%emt 0:03:40]} Rad8 {[%emt 0:
03:37]} 23. Qe4 {[%emt 0:04:40]} Rd7 {[%emt 0:02:47]} 24. Ng2 {[%emt 0:03:03]}
Rfd8 {[%emt 0:02:56]} 25. Nf4 {[%emt 0:02:04]} c5 {[%emt 0:00:43]} 26. b3 {
[%emt 0:03:15]} Kg8 {[%emt 0:04:53]} 27. Rbd1 {[%emt 0:04:09]} Kf8 {[%emt 0:03:
00]} 28. a4 {[%emt 0:06:43]} a5 {[%emt 0:04:03]} 29. Nxe6+ {[%emt 0:03:35]}
Qxe6 {[%emt 0:01:18]} 30. Qxb7 {[%emt 0:01:14]} Rxd1 {[%emt 0:02:21]} 31. Rxd1
{[%emt 0:02:05]} Rxd1+ {[%emt 0:03:20]} 32. Bxd1 {[%emt 0:00:03]} Bxe5 {
[%emt 0:01:19]} 33. Qa8+ {[%emt 0:00:40]} Kg7 {[%emt 0:00:04]} 34. Qxa5 {
[%emt 0:00:39]} Qd6 {[%emt 0:00:23]} 35. Qd2 {[%emt 0:00:55]} Qxd2 {[%emt 0:01:
44]} 36. Nxd2 {[%emt 0:00:02]} Nc6 {[%emt 0:00:10]} 37. Kf1 {[%emt 0:01:57]} f5
{[%emt 0:00:59]} 38. gxf5 {[%emt 0:02:05]} gxf5 {[%emt 0:00:02]} 39. Bf3 {
[%emt 0:00:54]} Na5 {[%emt 0:00:47]} 40. Bd1 {[%emt 0:02:40]} Nc6 {[%emt 0:01:
43]} 41. Ke2 {[%emt 0:54:01]} Kf6 {[%emt 0:51:10]} 42. Kd3 {[%emt 0:01:25]}
Nb4+ {[%emt 0:04:26]} 43. Ke3 {[%emt 0:01:11]} Bd4+ {[%emt 0:00:25]} 44. Ke2 {
[%emt 0:00:32]} Be5 {[%emt 0:01:31]} 45. Nf1 {[%emt 0:02:19]} Bc7 {[%emt 0:00:
00]} 46. Ne3 {[%emt 0:00:00]} Ke5 {[%emt 0:00:00]} 47. Ng2 {[%emt 0:00:00]} Nc6
{[%emt 0:00:00]} 48. Ke3 {[%emt 0:00:00]} Bd8 {[%emt 0:00:00]} 49. f4+ {
[%emt 0:00:00]} Ke6 {[%emt 0:00:00]} 50. Ne1 {[%emt 0:00:00]} Bf6 {[%emt 0:00:
00]} 51. Kd2 {[%emt 0:00:00]} Nb4 {[%emt 0:00:00]} 52. Ng2 {[%emt 0:00:00]} Bd8
{[%emt 0:00:00]} 53. Bf3 {[%emt 0:00:00]} Bc7 {[%emt 0:00:00]} 54. Ke2 {
[%emt 0:00:00]} Nc2 {[%emt 0:00:00]} 55. Kf2 {[%emt 0:00:00]} Nd4 {[%emt 0:00:
00]} 56. Bd1 {[%emt 0:00:00]} Nc6 {[%emt 0:00:18]} 57. Kg3 {[%emt 0:00:00]} Ne7
{[%emt 0:02:28]} 58. Ne3 {[%emt 0:00:00]} Ba5 {[%emt 0:00:40]} 59. Bc2 {
[%emt 0:00:00]} Be1+ {[%emt 0:00:32]} 60. Kf3 {[%emt 0:00:00]} Ba5 {[%emt 0:00:
16]} 61. Ke2 {[%emt 0:16:23]} Bc7 {[%emt 0:19:55]} 62. Ng2 {[%emt 0:00:13]} Nc6
{[%emt 0:00:49]} 63. Ke3 {[%emt 0:00:46]} Ba5 {[%emt 0:01:25]} 64. Bd1 {
[%emt 0:02:43]} Nd4 {[%emt 0:00:42]} 65. Kf2 {[%emt 0:00:53]} Bd8 {[%emt 0:00:
47]} 66. Kg3 {[%emt 0:00:50]} Nc6 {[%emt 0:00:24]} 67. Ne3 {[%emt 0:00:20]} Ne7
{[%emt 0:00:49]} 68. Bf3 {[%emt 0:00:49]} Ba5 {[%emt 0:00:33]} 69. Ng2 {
[%emt 0:01:57]} Bd2 {[%emt 0:00:37]} 70. Kh4 {[%emt 0:01:43]} Kf6 {[%emt 0:00:
52]} 71. Bd5 {[%emt 0:01:14]} Kg6 {[%emt 0:00:39]} 72. Kg3 {[%emt 0:00:06]} Kf6
{[%emt 0:00:04]} 73. Kf3 {[%emt 0:00:12]} Ng6 {[%emt 0:00:15]} 74. Bc6 {
[%emt 0:00:13]} Ke6 {[%emt 0:00:27]} 75. Be8 {[%emt 0:00:16]} Ne7 {[%emt 0:00:
14]} 76. Ke2 {[%emt 0:00:07]} Ba5 {[%emt 0:00:14]} 77. Ne1 {[%emt 0:00:16]} Ng8
{[%emt 0:01:15]} 78. Nd3 {[%emt 0:00:10]} Kd6 {[%emt 0:00:01]} 79. Kf3 {
[%emt 0:01:39]} Bd2 {[%emt 0:01:05]} 80. Kg3 {[%emt 0:01:02]} Nf6 {[%emt 0:00:
26]} 81. Bg6 {[%emt 0:00:45]} Ne4+ {[%emt 0:00:14]} 82. Kh4 {[%emt 0:00:38]}
Ke6 {[%emt 0:00:36]} 83. Kh5 {[%emt 0:00:22]} Kf6 {[%emt 0:00:11]} 84. Kxh6 {
[%emt 0:00:22]} Ng3 {[%emt 0:01:05]} 85. Bh5 {[%emt 0:01:22]} Ba5 {[%emt 0:00:
59]} 86. Bf3 {[%emt 0:00:29]} Bc7 {[%emt 0:00:22]} 87. Kh7 {[%emt 0:00:22]} Ne4
{[%emt 0:00:06]} 88. h4 {[%emt 0:01:05]} Kf7 {[%emt 0:00:04]} 89. Bxe4 {
[%emt 0:01:45]} fxe4 {[%emt 0:00:05]} 90. Nxc5 {[%emt 0:00:02]} e3 {[%emt 0:00:
20]} 91. Nd3 {[%emt 0:00:36]} Kf6 {[%emt 0:00:14]} 92. h5 {[%emt 0:00:18]} Kf5
{[%emt 0:00:06]} 93. h6 {[%emt 0:00:41]} e2 {[%emt 0:00:39]} 94. Kg8 {[%emt 0:
00:23]} Ba5 {[%emt 0:01:48]} 95. h7 {[%emt 0:00:07]} Ke4 {[%emt 0:00:06]} 96.
Ne1 {[%emt 0:01:00]} Bxe1 {[%emt 0:00:34]} 97. h8=Q {[%emt 0:00:03]} Kxf4 {
[%emt 0:00:10]} 98. Qd4+ {[%emt 0:00:49]} Kf3 {[%emt 0:00:10]} 99. Qd3+ {
[%emt 0:00:06]} Kf2 {[%emt 0:00:04]} 100. c5 {[%emt 0:00:22]} Ba5 {[%emt 0:00:
20]} 101. Qf5+ {[%emt 0:00:20]} Kg2 {[%emt 0:00:11]} 102. Qe4+ {[%emt 0:00:06]}
Kf2 {[%emt 0:00:08]} 103. b4 {[%emt 0:00:13]} 1-0

[Event "FIDE Womens Grand Swiss 2021"]
[Site "Riga"]
[Date "2021.10.31"]
[Round "5.24"]
[White "Golsta, Madara"]
[Black "Divya Deshmukh"]
[Result "0-1"]
[ECO "E43"]
[WhiteElo "2003"]
[BlackElo "2305"]
[Annotator "NA"]
[PlyCount "72"]
[EventDate "2021.10.27"]
[EventType "swiss"]
[EventCountry "LAT"]
[Tiebreak "Cut1 Buchholz+Sonneborn-Berger (Swiss)"]
[SourceTitle "playchess.com"]
[Source "ChessBase"]
[SourceQuality "1"]
[TimeControl "40/6000+30:20/3000+30:900+30"]

1. d4 {[%emt 0:10:04]} Nf6 {[%emt 0:10:04]} 2. c4 {[%emt 0:00:08]} e6 {[%emt 0:
00:04]} 3. Nc3 {[%emt 0:00:11]} Bb4 {[%emt 0:00:42]} 4. e3 {[%emt 0:00:13]} b6
{[%emt 0:02:04]} 5. Nf3 {[%emt 0:04:39]} Bb7 {[%emt 0:00:08]} 6. Bd3 {[%emt 0:
00:45]} O-O {[%emt 0:00:29]} 7. Qc2 {[%emt 0:02:55]} d5 {[%emt 0:02:15]} 8. a3
{[%emt 0:03:34]} Bxc3+ {[%emt 0:04:29]} 9. bxc3 {[%emt 0:00:20]} dxc4 {[%emt 0:
03:21]} 10. Bxc4 {[%emt 0:00:23]} Bxf3 {[%emt 0:05:04]} 11. gxf3 {[%emt 0:00:
11]} c5 {[%emt 0:00:07]} 12. Bb2 {[%emt 0:09:51]} Nc6 {[%emt 0:21:29]} 13. Rd1
{[%emt 0:05:01]} Qc7 {[%emt 0:10:24]} 14. Ba2 {[%emt 0:03:41]} Ne7 {[%emt 0:04:
24]} 15. Qe2 {[%emt 0:04:30]} Rfd8 {[%emt 0:01:28]} 16. f4 {[%emt 0:04:11]}
Rac8 {[%emt 0:09:30]} 17. Rg1 {[%emt 0:04:04]} cxd4 {[%emt 0:00:45]} 18. cxd4 {
[%emt 0:00:28]} Ned5 {[%emt 0:00:31]} 19. Qf3 {[%emt 0:07:40]} Qc2 {[%emt 0:01:
00]} 20. Rd2 {[%emt 0:01:22]} Qe4 {[%emt 0:01:47]} 21. Qg3 {[%emt 0:05:31]} g6
{[%emt 0:02:45]} 22. Ke2 {[%emt 0:07:13]} Nh5 {[%emt 0:01:04]} 23. Qh4 {
[%emt 0:01:22]} Nhxf4+ {[%emt 0:09:17]} 24. Kf1 {[%emt 0:05:10]} Nxe3+ {
[%emt 0:01:01]} 25. fxe3 {[%emt 0:00:15]} Qxe3 {[%emt 0:00:12]} 26. Qf2 {
[%emt 0:05:36]} Qh3+ {[%emt 0:03:03]} 27. Rg2 {[%emt 0:00:11]} Qxg2+ {[%emt 0:
02:28]} 28. Qxg2 {[%emt 0:00:05]} Nxg2 {[%emt 0:00:02]} 29. Rxg2 {[%emt 0:00:
12]} b5 {[%emt 0:01:08]} 30. h4 {[%emt 0:00:17]} h5 {[%emt 0:02:36]} 31. Bb3 {
[%emt 0:00:21]} a5 {[%emt 0:01:42]} 32. Rg5 {[%emt 0:00:14]} a4 {[%emt 0:03:05]
} 33. Bd1 {[%emt 0:00:08]} Rd5 {[%emt 0:00:21]} 34. Rg3 {[%emt 0:00:40]} Rf5+ {
[%emt 0:02:57]} 35. Kg1 {[%emt 0:01:38]} Rf4 {[%emt 0:00:21]} 36. Bxh5 {
[%emt 0:00:49]} Rc2 {[%emt 0:00:41]} 0-1

[Event "FIDE Womens Grand Swiss 2021"]
[Site "Riga"]
[Date "2021.10.31"]
[Round "5.25"]
[White "February, Jesse Nikki"]
[Black "Eizaguerri Floris, Maria"]
[Result "0-1"]
[ECO "B47"]
[WhiteElo "1857"]
[BlackElo "2328"]
[Annotator "NA"]
[PlyCount "61"]
[EventDate "2021.10.27"]
[EventType "swiss"]
[EventCountry "LAT"]
[Tiebreak "Cut1 Buchholz+Sonneborn-Berger (Swiss)"]
[SourceTitle "playchess.com"]
[Source "ChessBase"]
[SourceQuality "1"]
[TimeControl "40/6000+30:20/3000+30:900+30"]

1. e4 {[%emt 0:10:07]} c5 {[%emt 0:10:07]} 2. Nf3 {[%emt 0:00:09]} e6 {[%emt 0:
00:06]} 3. Nc3 {[%emt 0:00:46]} Nc6 {[%emt 0:00:37]} 4. d4 {[%emt 0:00:23]}
cxd4 {[%emt 0:00:06]} 5. Nxd4 {[%emt 0:00:09]} a6 {[%emt 0:00:07]} 6. f4 {
[%emt 0:02:35]} Qc7 {[%emt 0:05:42]} 7. Nf3 {[%emt 0:01:51]} d6 {[%emt 0:04:34]
} 8. Bd3 {[%emt 0:01:50]} Nf6 {[%emt 0:00:26]} 9. h3 {[%emt 0:01:20]} b5 {
[%emt 0:01:51]} 10. a3 {[%emt 0:01:54]} Bb7 {[%emt 0:03:44]} 11. Be3 {[%emt 0:
04:42]} Be7 {[%emt 0:02:29]} 12. Qe2 {[%emt 0:00:00]} Rc8 {[%emt 0:02:02]} 13.
Qf2 {[%emt 0:00:29]} Nd7 {[%emt 0:04:32]} 14. O-O {[%emt 0:03:28]} Na5 {
[%emt 0:06:18]} 15. f5 {[%emt 0:09:25]} O-O {[%emt 0:06:44]} 16. Qg3 {[%emt 0:
05:54]} Bf6 {[%emt 0:07:39]} 17. Bg5 {[%emt 0:15:56]} exf5 {[%emt 0:07:29]} 18.
exf5 {[%emt 0:03:13]} Rfe8 {[%emt 0:01:52]} 19. Rad1 {[%emt 0:05:50]} Qb6+ {
[%emt 0:06:53]} 20. Kh1 {[%emt 0:02:04]} d5 {[%emt 0:00:42]} 21. Bxb5 {[%emt 0:
13:09]} axb5 {[%emt 0:05:18]} 22. Nxd5 {[%emt 0:00:15]} Bxd5 {[%emt 0:05:00]}
23. Rxd5 {[%emt 0:00:11]} Bxg5 {[%emt 0:00:30]} 24. Nxg5 {[%emt 0:00:30]} Nf6 {
[%emt 0:07:28]} 25. Rd6 {[%emt 0:07:45]} Rc6 {[%emt 0:00:30]} 26. Rfd1 {
[%emt 0:00:30]} Nc4 {[%emt 0:00:30]} 27. R6d4 {[%emt 0:00:30]} Ne3 {[%emt 0:00:
30]} 28. Ne6 {[%emt 0:00:30]} fxe6 {[%emt 0:00:30]} 29. Qxe3 {[%emt 0:00:30]}
exf5 {[%emt 0:06:19]} 30. Qb3+ {[%emt 0:05:38]} Kh8 {[%emt 0:00:43]} 31. Kh2 {
[%emt 0:07:43]} 0-1

[Event "FIDE Womens Grand Swiss 2021"]
[Site "Riga"]
[Date "2021.11.01"]
[Round "6.2"]
[White "Zhu, Jiner"]
[Black "Paehtz, Elisabeth"]
[Result "1/2-1/2"]
[ECO "B32"]
[WhiteElo "2455"]
[BlackElo "2475"]
[Annotator "ChessBase"]
[PlyCount "147"]
[EventDate "2021.10.27"]
[EventType "swiss"]
[EventCountry "LAT"]
[Tiebreak "Cut1 Buchholz+Sonneborn-Berger (Swiss)"]
[SourceTitle "playchess.com"]
[Source "ChessBase"]
[SourceQuality "1"]
[TimeControl "40/6000+30:20/3000+30:900+30"]

1. e4 {[%emt 0:10:05]} c5 {[%emt 0:10:03]} 2. Nf3 {[%emt 0:00:07]} Nc6 {
[%emt 0:00:02]} 3. d4 {[%emt 0:00:07]} cxd4 {[%emt 0:00:04]} 4. Nxd4 {[%emt 0:
00:05]} e5 {[%emt 0:00:03]} 5. Nb5 {[%emt 0:00:20]} d6 {[%emt 0:00:05]} 6. c4 {
[%emt 0:02:50]} g6 {[%emt 0:00:42]} 7. N1c3 {[%emt 0:13:32]} a6 {[%emt 0:00:20]
} 8. Na3 {[%emt 0:00:06]} Bg7 {[%emt 0:01:26]} 9. Be3 {[%emt 0:02:20]} Be6 {
[%emt 0:06:15]} 10. Qd2 {[%emt 0:07:11]} Nf6 {[%emt 0:04:55]} 11. f3 {[%emt 0:
01:25]} O-O {[%emt 0:25:02]} 12. Be2 {[%emt 0:01:19]} Rc8 {[%emt 0:10:24]} 13.
O-O {[%emt 0:02:10]} Nd4 {[%emt 0:03:11]} 14. Rfd1 {[%emt 0:06:24]} Nh5 {
[%emt 0:11:01]} 15. Bf1 {[%emt 0:07:31]} Nf4 {[%emt 0:07:22]} 16. Nd5 {[%emt 0:
05:37]} Nxd5 {[%emt 0:04:09]} 17. cxd5 {[%emt 0:03:19]} Bd7 {[%emt 0:00:02]}
18. Qb4 {[%emt 0:01:03]} f5 {[%emt 0:10:51]} 19. Qxd6 {[%emt 0:04:11]} fxe4 {
[%emt 0:00:19]} 20. fxe4 {[%emt 0:00:41]} Re8 {[%emt 0:07:39]} 21. Rac1 {
[%emt 0:04:34]} Bf8 {[%emt 0:01:33]} 22. Rxc8 {[%emt 0:00:15]} Qxc8 {[%emt 0:
00:02]} 23. Qf6 {[%emt 0:00:12]} Nc2 {[%emt 0:03:55]} 24. Nxc2 {[%emt 0:03:56]}
Qxc2 {[%emt 0:00:05]} 25. Qf3 {[%emt 0:00:08]} Qxb2 {[%emt 0:01:16]} 26. Bc4 {
[%emt 0:04:17]} Qb4 {[%emt 0:00:52]} 27. Rf1 {[%emt 0:01:00]} Qxc4 {[%emt 0:01:
42]} 28. Qf7+ {[%emt 0:00:09]} Kh8 {[%emt 0:00:02]} 29. Qxd7 {[%emt 0:03:35]}
Qc8 {[%emt 0:00:05]} 30. Rf7 {[%emt 0:00:24]} Qxd7 {[%emt 0:00:43]} 31. Rxd7 {
[%emt 0:00:05]} Rc8 {[%emt 0:01:08]} 32. Bg5 {[%emt 0:02:22]} Kg8 {[%emt 0:00:
35]} 33. Bf6 {[%emt 0:04:15]} Rc4 {[%emt 0:00:32]} 34. d6 {[%emt 0:01:09]} Rd4
{[%emt 0:00:17]} 35. Bxe5 {[%emt 0:01:32]} Rxe4 {[%emt 0:00:03]} 36. Bg3 {
[%emt 0:00:12]} Rd4 {[%emt 0:00:15]} 37. Kf2 {[%emt 0:00:40]} b5 {[%emt 0:01:
10]} 38. Ke3 {[%emt 0:00:17]} Rd1 {[%emt 0:00:04]} 39. Ke4 {[%emt 0:00:26]} Rd2
{[%emt 0:00:42]} 40. Bf4 {[%emt 0:01:39]} Rxa2 {[%emt 0:00:10]} 41. Rb7 {
[%emt 0:59:56]} Ra4+ {[%emt 0:51:23]} 42. Ke3 {[%emt 0:00:18]} Rxf4 {[%emt 0:
00:00]} 43. Kxf4 {[%emt 0:00:00]} Bxd6+ {[%emt 0:00:00]} 44. Kg5 {[%emt 0:00:
00]} b4 {[%emt 0:00:00]} 45. Kf6 {[%emt 0:00:00]} Bf8 {[%emt 0:00:00]} 46. g4 {
[%emt 0:00:00]} a5 {[%emt 0:00:00]} 47. Ra7 {[%emt 0:00:00]} b3 {[%emt 0:00:00]
} 48. Rxa5 {[%emt 0:00:00]} Bg7+ {[%emt 0:00:00]} 49. Ke6 {[%emt 0:00:00]} Bc3
{[%emt 0:00:00]} 50. Rb5 {[%emt 0:00:00]} b2 {[%emt 0:00:00]} 51. Rb7 {[%emt 0:
00:00]} Bd4 {[%emt 0:00:00]} 52. h4 {[%emt 0:00:00]} Bc3 {[%emt 0:00:00]} 53.
h5 {[%emt 0:00:00]} gxh5 {[%emt 0:00:00]} 54. gxh5 {[%emt 0:00:00]} b1=Q {
[%emt 0:00:00]} 55. Rxb1 {[%emt 0:00:00]} Kg7 {[%emt 0:00:00]} 56. Kf5 {
[%emt 0:00:00]} Bd2 {[%emt 0:00:00]} 57. Rd1 {[%emt 0:00:00]} Be3 {[%emt 0:00:
00]} 58. Ke4 {[%emt 0:00:00]} Bg5 {[%emt 0:00:00]} 59. Rd7+ {[%emt 0:00:00]}
Kh6 {[%emt 0:00:00]} 60. Kf5 {[%emt 0:00:00]} Bc1 {[%emt 0:00:37]} 61. Rd6+ {
[%emt 0:14:02]} Kg7 {[%emt 0:15:07]} 62. Rf6 {[%emt 0:00:30]} Bd2 {[%emt 0:00:
58]} 63. Ke6 {[%emt 0:00:08]} Bc1 {[%emt 0:01:22]} 64. Rf1 {[%emt 0:01:12]} Bd2
{[%emt 0:00:09]} 65. Rf2 {[%emt 0:00:29]} Be3 {[%emt 0:00:12]} 66. Re2 {
[%emt 0:00:13]} Bc1 {[%emt 0:00:16]} 67. Kf5 {[%emt 0:00:31]} Kh6 {[%emt 0:00:
40]} 68. Kg4 {[%emt 0:00:13]} Kg7 {[%emt 0:00:26]} 69. Rg2 {[%emt 0:00:14]} Kh6
{[%emt 0:00:37]} 70. Rc2 {[%emt 0:00:46]} Be3 {[%emt 0:00:11]} 71. Rc3 {
[%emt 0:00:04]} Bd2 {[%emt 0:00:13]} 72. Rd3 {[%emt 0:00:19]} Bc1 {[%emt 0:00:
07]} 73. Rc3 {[%emt 0:00:04]} Bd2 {[%emt 0:00:05]} 74. Rd3 {[%emt 0:00:04]}
1/2-1/2